{"text_format":"1","workbook":"xlsx","n_sheets":4,"sheets":["مقدمة","بيانات عامة","تحليل  مخصص الديون المشكوك فيها","تحليل  الديون المعدومة"],"not_rendered":{"charts":0,"images":2,"macros":1,"external_links":0,"defined_names":1,"comments":0,"pivot_tables":0},"unopened":[],"bounds":{"document_bytes":16777216,"sheet_cells":100000,"rows_first":2000,"rows_last":500,"rows_between":2000,"halvings":0,"cell_chars":16384,"cell_head_chars":4096},"cells_cut":0,"cells_raw":0,"read":"whole","date_system":"1900"}

{"sheet":"مقدمة","index":0,"n_rows":24,"n_cols":10,"rows_kept":24,"cut":false,"hidden":false,"merged":[[18,9,18,13],[20,18,20,19]]}
[]
[]
[]
[]
[]
[null,null,null,null,null,null,"تقرير (ج.م.ص. / 3) تقرير المتابعة السنوي لنشاط التمويل متناهى الصغر"]
[]
[null,null,null,"تلتزم الجمعية أو المؤسسة  بناءً على نص المادة \"42 \" من قواعد ومعايير ممارسة نشاط التمويل متناهي الصغربإعداد التقارير الرقابية  المبينة فى الملحق (ب) وتسليمها "]
[null,null,null,"للوحدة فى التوقيتات المحددة قرين كل منها."]
[]
[null,null,null,"على الجمعية أو المؤسسة السعى نحو توافق النماذج المستخدمة وتصميم قواعد البيانات وتطبيقات نظم المعلومات بقدر الإمكان مع متطلبات إعداد التقارير الرقابية المشار "]
[null,null,null,"إليها لتسهيل إعدادها."]
[]
[null,null,null,"يجب على الجمعية أو المؤسسة بذل العناية اللازمة للتأكد من دقة التقارير المقدمة للوحدة وسلامة تصويرها ."]
[]
[null,null,null,"وقد تم تصميم النموذج الإلكتروني المرفق لمساعدة الجمعيات و المؤسسات الأهلية بإعداد التقارير الشهرية المطلوبة "]
[]
[]
[null,null,null,null,null,null,null,null,null,"  التوقيت: خلال شهرين من نهاية كل سنة مالية"]
[]
[]
[null,null," "]
[]
[null,null,null,null,null,null,"                                                                                                                                                                                                                                                                                                                                                                                                                                                                                                                                                   "]

{"sheet":"بيانات عامة","index":1,"n_rows":37,"n_cols":12,"rows_kept":37,"cut":false,"hidden":false,"merged":[[7,3,13,10],[36,1,36,2],[33,5,33,7],[4,3,4,10],[15,3,15,10],[25,4,25,10],[30,5,30,7],[17,4,17,10],[21,3,21,12],[27,3,27,12],[19,4,19,5],[23,4,23,10],[30,9,30,11]]}
[]
[]
[]
[]
[null,null,null,"تقرير (ج.م.ص. / 3) تقرير المتابعة السنوي لنشاط التمويل متناهى الصغر"]
[]
[]
[]
[]
[]
[]
[]
[]
[]
[]
[null,null,null,"بيانات الجمعية / المؤسسة الأهلية و بيانات معد التقرير"]
[]
[null,null,null,"اسم الجمعية/المؤسسة :"]
[]
[null,null,null,"رقم الترخيص :"]
[]
[null,null,null,"اسم وصفة معد التقرير"]
[]
[null,null,null,"اسم معد التقرير:"]
[]
[null,null,null,"صفة معد التقرير:"]
[]
[null,null,null,"بيانات التقرير"]
[]
[null,null,null,null,null,"يوم  -","شهر  -","سنة",null,"يوم  -","شهر  -","سنة"]
[null,null,null,"الفترة :","من",null,null,null,"إلى"]
[]
[null,null,null,null,null,"يوم  -","شهر  -","سنة"]
[null,null,null,"تاريخ الاعداد:"]
[]
[]
[null,"إعداد:",null,{"$f":"IF(E24=\"\",\"\",E24)","v":""}]

{"sheet":"تحليل  مخصص الديون المشكوك فيها","index":2,"n_rows":26,"n_cols":8,"rows_kept":26,"cut":false,"hidden":false,"merged":[[25,1,25,2],[25,3,25,4],[4,3,4,7],[16,3,17,3],[16,4,16,7],[15,3,15,7],[8,3,12,7],[6,4,6,5]]}
[]
[null,{"$f":"IF('بيانات عامة'!E18=\"\",\"\",'بيانات عامة'!E18)","v":""},null,null,null,null,"ترخيص رقم:",{"$f":"IF('بيانات عامة'!E20=\"\",\"\",'بيانات عامة'!E20)","v":""}]
[]
[]
[null,null,null,"تقرير (ج.م.ص. / 3) تقرير المتابعة السنوي لنشاط التمويل متناهى الصغر"]
[]
[null,null,null,"الفترة من :",{"$f":"IF('بيانات عامة'!F31=\"\",\"\",'بيانات عامة'!F31)","v":""},null,"إلى:",{"$f":"IF('بيانات عامة'!J31=\"\",\"\",'بيانات عامة'!J31)","v":""}]
[]
[]
[]
[]
[]
[]
[]
[]
[null,null,null,"1. تحليل مخصص الديون المشكوك في تحصيلها"]
[null,null,null,"المنتج التمويلى","مجال النشاط الممنوح له التمويل"]
[null,null,null,null,"تجارى","إنتاجى / حرفى","خدمى","زراعى"]
[]
[]
[]
[]
[null,null,null,"إجمالى"]
[null,null,null,null,{"$f":"IF(AND(H19=\"\",E20=\"\",E21=\"\",E22=\"\"),\"\",E22+E21+E20+H19)","v":""},{"$f":"IF(AND(F19=\"\",F20=\"\",F21=\"\",F22=\"\"),\"\",F22+F21+F20+F19)","v":""},{"$f":"IF(AND(G19=\"\",G20=\"\",G21=\"\",G22=\"\"),\"\",G22+G21+G20+G19)","v":""},{"$f":"IF(AND(#REF!=\"\",H20=\"\",H21=\"\",H22=\"\"),\"\",H22+H21+H20+#REF!)","v":{"$error":"#REF!"}}]
[]
[null,"إعداد:",null,{"$f":"IF('بيانات عامة'!$E$24=\"\",\"\",'بيانات عامة'!$E$24)","v":""}]

{"sheet":"تحليل  الديون المعدومة","index":3,"n_rows":38,"n_cols":8,"rows_kept":38,"cut":false,"hidden":false,"merged":[[37,1,37,2],[37,3,37,4],[4,3,4,7],[15,3,15,7],[16,3,17,3],[16,4,16,7],[26,3,26,7],[27,3,28,3],[27,4,27,7],[8,3,12,7],[6,4,6,5]]}
[]
[null,{"$f":"IF('بيانات عامة'!E18=\"\",\"\",'بيانات عامة'!E18)","v":""},null,null,null,null,"ترخيص رقم:",{"$f":"IF('بيانات عامة'!E20=\"\",\"\",'بيانات عامة'!E20)","v":""}]
[]
[]
[null,null,null,"تقرير (ج.م.ص. / 3) تقرير المتابعة السنوي لنشاط التمويل متناهى الصغر"]
[]
[null,null,null,"الفترة من :",{"$f":"IF('بيانات عامة'!F31=\"\",\"\",'بيانات عامة'!F31)","v":""},null,"إلى:",{"$f":"IF('بيانات عامة'!J31=\"\",\"\",'بيانات عامة'!J31)","v":""}]
[]
[]
[]
[]
[]
[]
[]
[]
[null,null,null,"2.1- تحليل قيمة أرصدة التمويل المعدومة"]
[null,null,null,"المنتج التمويلى","                                                         مجال النشاط الممنوح له التمويل"]
[null,null,null,null,"تجارى","إنتاجى / حرفى","خدمى","زراعى"]
[]
[]
[]
[]
[null,null,null,"إجمالى"]
[null,null,null,null,{"$f":"IF(AND(E19=\"\",E20=\"\",E21=\"\",E22=\"\"),\"\",E22+E21+E20+E19)","v":""},{"$f":"IF(AND(F19=\"\",F20=\"\",F21=\"\",F22=\"\"),\"\",F22+F21+F20+F19)","v":""},{"$f":"IF(AND(G19=\"\",G20=\"\",G21=\"\",G22=\"\"),\"\",G22+G21+G20+G19)","v":""},{"$f":"IF(AND(H19=\"\",H20=\"\",H21=\"\",H22=\"\"),\"\",H22+H21+H20+H19)","v":""}]
[]
[]
[null,null,null,"2.2- تحليل عدد العملاء أصحاب الديون المعدومة"]
[null,null,null,"المنتج التمويلى","                                         مجال النشاط الممنوح له التمويل"]
[null,null,null,null,"تجارى","إنتاجى / حرفى","خدمى","زراعى"]
[]
[]
[]
[]
[null,null,null,"إجمالى"]
[null,null,null,null,{"$f":"IF(AND(E30=\"\",E29=\"\",E31=\"\",E32=\"\",E33=\"\"),\"\",E33+E32+E31+E30)","v":0},{"$f":"IF(AND(F30=\"\",F29=\"\",F31=\"\",F32=\"\",F33=\"\"),\"\",F33+F32+F31+F30)","v":0},{"$f":"IF(AND(G30=\"\",G29=\"\",G31=\"\",G32=\"\",G33=\"\"),\"\",G33+G32+G31+G30)","v":0},{"$f":"IF(AND(H30=\"\",H29=\"\",H31=\"\",H32=\"\",H33=\"\"),\"\",H33+H32+H31+H30)","v":0}]
[]
[]
[null,"إعداد:",null,{"$f":"IF('بيانات عامة'!$E$24=\"\",\"\",'بيانات عامة'!$E$24)","v":""}]